fUSD/lending_fUSD_20250426
["ID","MTS","AMOUNT","RATE_DAILY","PERIOD"]
[359082271,1745699265953,-400.0,0.00019861,2]
[359082272,1745699265976,-400.0,0.00019861,2]
[359082273,1745699265998,-400.0,0.00019861,2]
[359082274,1745699266020,-400.0,0.00019861,2]
[359082275,1745699266042,-400.0,0.00019861,2]
[359082276,1745699266065,-709.4,0.00019861,2]
[359082277,1745699266087,-400.0,0.00019861,2]
[359082278,1745699266110,-500.0,0.00019861,2]
[359082279,1745699266132,-805.16,0.00019861,2]
[359082280,1745699266156,-400.0,0.00019861,2]
[359082281,1745699266178,-599.43,0.00019861,2]
[359082282,1745699266203,-534.45,0.00019861,2]
[359082283,1745699266224,-500.0,0.00019861,2]
[359082284,1745699266246,-444.3,0.00019861,2]
[359082285,1745699266268,-400.0,0.00019861,2]
[359082286,1745699266291,-400.0,0.00019861,2]
[359082287,1745699266313,-400.0,0.00019861,2]
[359082288,1745699266336,-400.0,0.00019861,2]
[359082289,1745699266358,-400.0,0.00019861,2]
[359082290,1745699266381,-500.0,0.00019861,2]
[359082291,1745699266404,-400.0,0.00019861,2]
[359082292,1745699266426,-500.0,0.00019861,2]
[359082293,1745699266448,-400.0,0.00019861,2]
[359082294,1745699266471,-500.0,0.00019861,2]
[359082295,1745699266494,-400.0,0.00019861,2]
[359082296,1745699266517,-400.0,0.00019861,2]
[359082297,1745699266539,-500.0,0.00019861,2]
[359082298,1745699266560,-400.0,0.00019861,2]
[359082299,1745699266582,-400.0,0.00019861,2]
[359082300,1745699266604,-400.0,0.00019861,2]
[359082301,1745699266626,-400.0,0.00019861,2]
[359082302,1745699266649,-400.0,0.00019861,2]
[359082303,1745699266674,-500.0,0.00019861,2]
[359082304,1745699266697,-400.0,0.00019861,2]
[359082305,1745699266721,-535.89,0.00019861,2]
[359082306,1745699266744,-400.0,0.00019861,2]
[359082307,1745699266767,-400.0,0.00019861,2]
[359082308,1745699266788,-500.0,0.00019861,2]
[359082309,1745699266811,-500.0,0.00019861,2]
[359082310,1745699266832,-400.0,0.00019861,2]
[359082311,1745699266854,-400.0,0.00019861,2]
[359082312,1745699266876,-400.0,0.00019861,2]
[359082313,1745699266898,-505.81,0.00019861,2]
[359082314,1745699266920,-400.0,0.00019861,2]
[359082315,1745699266943,-400.0,0.00019861,2]
[359082316,1745699266965,-563.88,0.00019861,2]
[359082317,1745699266989,-400.0,0.00019861,2]
[359082318,1745699267011,-400.0,0.00019861,2]
[359082319,1745699267034,-529.81,0.00019861,2]
[359082320,1745699267057,-400.0,0.00019861,2]
[359082321,1745699267082,-400.0,0.00019861,2]
[359082322,1745699267105,-400.0,0.00019861,2]
[359082323,1745699267127,-528.07,0.00019861,2]
[359082324,1745699267149,-400.0,0.00019861,2]
[359082325,1745699267170,-500.0,0.00019861,2]
[359082326,1745699267195,-400.0,0.00019861,2]
[359082327,1745699267217,-400.0,0.00019861,2]
[359082328,1745699267239,-400.0,0.00019861,2]
[359082329,1745699267262,-541.31,0.00019861,2]
[359082330,1745699267284,-400.0,0.00019861,2]
[359082331,1745699267306,-413.56,0.00019861,2]
[359082332,1745699267328,-488.56,0.00019861,2]
[359082333,1745699267349,-400.0,0.00019861,2]
[359082334,1745699267371,-487.11,0.00019861,2]
[359082335,1745699267393,-689.56,0.00019861,2]
[359082336,1745699267415,-400.0,0.00019861,2]
[359082337,1745699267436,-400.0,0.00019861,2]
[359082338,1745699267459,-438.97,0.00019861,2]
[359082339,1745699267481,-400.0,0.00019861,2]
[359082340,1745699267504,-400.0,0.00019861,2]
[359082341,1745699267527,-400.0,0.00019861,2]
[359082342,1745699267549,-400.0,0.00019861,2]
[359082343,1745699267571,-400.0,0.00019861,2]
[359082344,1745699267593,-423.41,0.00019861,2]
[359082345,1745699267616,-400.0,0.00019861,2]
[359082346,1745699267637,-400.0,0.00019861,2]
[359082347,1745699267659,-417.83,0.00019861,2]
[359082348,1745699267681,-400.0,0.00019861,2]
[359082349,1745699267704,-400.0,0.00019861,2]
[359082350,1745699267728,-596.18,0.00019861,2]
[359082351,1745699267749,-485.25,0.00019861,2]
[359082352,1745699267771,-2559.88,0.00019861,2]
[359082353,1745699267793,-400.0,0.00019861,2]
[359082354,1745699267815,-948.07,0.00019861,2]
[359082355,1745699267837,-400.0,0.00019861,2]
[359082356,1745699267860,-400.0,0.00019861,2]
[359082357,1745699267882,-400.0,0.00019861,2]
[359082358,1745699267906,-645.85,0.00019861,2]
[359082359,1745699267929,-400.0,0.00019861,2]
[359082360,1745699267953,-400.0,0.00019861,2]
[359082361,1745699267975,-400.0,0.00019861,2]
[359082362,1745699267998,-919.74,0.00019861,2]
[359082363,1745699268022,-400.0,0.00019861,2]
[359082364,1745699268045,-400.0,0.00019861,2]
[359082365,1745699268067,-400.0,0.00019861,2]
[359082366,1745699268090,-467.5,0.00019861,2]
[359082367,1745699268113,-230.83827882,0.00019861,2]
[359082368,1745699268136,-400.0,0.00019861,2]
[359082369,1745699268159,-400.0,0.00019861,2]
[359082370,1745699268182,-400.0,0.00019861,2]
[359082371,1745699268211,-400.0,0.00019861,2]
[359082372,1745699268237,-400.0,0.00019861,2]
[359082373,1745699268259,-400.0,0.00019861,2]
[359082374,1745699268281,-400.0,0.00019861,2]
[359082375,1745699268304,-400.0,0.00019861,2]
[359082376,1745699268327,-467.74,0.00019861,2]
[359082377,1745699268352,-400.0,0.00019861,2]
[359082378,1745699268375,-488.11,0.00019861,2]
[359082379,1745699268399,-400.0,0.00019861,2]
[359082380,1745699268422,-668.71,0.00019861,2]
[359082381,1745699268446,-400.0,0.00019861,2]
[359082382,1745699268470,-376.68023544,0.00019861,2]
[359082383,1745699268500,-698.55,0.00019861,2]
[359082384,1745699268524,-400.0,0.00019861,2]
[359082385,1745699268548,-400.0,0.00019861,2]
[359082386,1745699268571,-400.0,0.00019861,2]
[359082387,1745699268594,-671.76,0.00019861,2]
[359082388,1745699268617,-445.83,0.00019861,2]
[359082389,1745699268640,-462.66,0.00019861,2]
[359082390,1745699268664,-400.0,0.00019861,2]
[359082391,1745699268688,-400.0,0.00019861,2]
[359082392,1745699268712,-400.0,0.00019861,2]
[359082393,1745699268735,-400.0,0.00019861,2]
[359082394,1745699268758,-261.63288512,0.00019861,2]
[359082395,1745699268780,-559.01,0.00019861,2]
[359082396,1745699268804,-423.68,0.00019861,2]
[359082397,1745699268826,-400.0,0.00019861,2]
[359082398,1745699268850,-400.0,0.00019861,2]
[359082399,1745699268874,-400.0,0.00019861,2]
[359082400,1745699268898,-400.0,0.00019861,2]
[359082401,1745699268922,-558.29,0.00019861,2]
[359082402,1745699268947,-400.0,0.00019861,2]
[359082403,1745699268971,-400.0,0.00019861,2]
[359082404,1745699269185,-400.0,0.00019861,2]
[359082405,1745699269212,-592.76,0.00019861,2]
[359082406,1745699269235,-425.49,0.00019861,2]
[359082407,1745699269259,-584.53,0.00019861,2]
[359082408,1745699269284,-902.93,0.00019861,2]
[359082409,1745699269308,-400.0,0.00019861,2]
[359082410,1745699269332,-400.0,0.00019861,2]
[359082411,1745699269357,-400.0,0.00019861,2]
[359082412,1745699269382,-400.0,0.00019861,2]
[359082413,1745699269407,-400.0,0.00019861,2]
[359082414,1745699269432,-400.0,0.00019861,2]
[359082415,1745699269463,-602.58,0.00019861,2]
[359082416,1745699269488,-512.95,0.00019861,2]
[359082417,1745699269513,-400.0,0.00019861,2]
[359082418,1745699269537,-554.7,0.00019861,2]
[359082419,1745699269560,-766.88,0.00019861,2]
[359082420,1745699269584,-712.14,0.00019861,2]
[359082421,1745699269607,-400.0,0.00019861,2]
[359082422,1745699269630,-400.0,0.00019861,2]
[359082423,1745699269654,-215.42974421,0.00019861,2]
[359082424,1745699269678,-400.0,0.00019861,2]
[359082425,1745699269701,-400.0,0.00019861,2]
[359082426,1745699269724,-400.0,0.00019861,2]
[359082427,1745699269748,-426.61,0.00019861,2]
[359082428,1745699269771,-747.12,0.00019861,2]
[359082429,1745699269793,-400.0,0.00019861,2]
[359082430,1745699269816,-479.82,0.00019861,2]
[359082431,1745699269839,-400.0,0.00019861,2]
[359082432,1745699269864,-430.43,0.00019861,2]
[359082433,1745699269887,-400.0,0.00019861,2]
[359082434,1745699269910,-400.0,0.00019861,2]
[359082435,1745699269934,-400.0,0.00019861,2]
[359082436,1745699269956,-412.5625911,0.00019861,2]
[359082437,1745699269992,-400.0,0.00019861,2]
[359082438,1745699270019,-6591.56,0.00019861,2]
[359082439,1745699270045,-400.0,0.00019861,2]
[359082440,1745699270069,-415.84,0.00019861,2]
[359082441,1745699270096,-465.4,0.00019861,2]
[359082442,1745699270121,-400.0,0.00019861,2]
[359082443,1745699270148,-400.0,0.00019861,2]
[359082444,1745699270173,-400.0,0.00019861,2]
[359082445,1745699270202,-580.97,0.00019861,2]
[359082446,1745699270228,-407.67,0.00019861,2]
[359082447,1745699270257,-8683.815416,0.00019861,2]
[359082448,1745699270284,-400.0,0.00019861,2]
[359082449,1745699270308,-400.0,0.00019861,2]
[359082450,1745699270334,-410.78,0.00019861,2]
[359082451,1745699270360,-400.0,0.00019861,2]
[359082452,1745699270386,-400.0,0.00019861,2]
[359082453,1745699270412,-400.0,0.00019861,2]
[359082454,1745699270438,-400.0,0.00019861,2]
[359082455,1745699270465,-515.88,0.00019861,2]
[359082456,1745699270489,-552.67,0.00019861,2]
[359082457,1745699270513,-400.0,0.00019861,2]
[359082458,1745699270537,-405.72,0.00019861,2]
[359082459,1745699270560,-400.0,0.00019861,2]
[359082460,1745699270584,-232.516964,0.00019861,2]
[359082461,1745699270608,-400.0,0.00019861,2]
[359082462,1745699270633,-703.31,0.00019861,2]
[359082463,1745699270657,-588.92,0.00019861,2]
[359082464,1745699270681,-490.04,0.00019861,2]
[359082465,1745699270705,-400.0,0.00019861,2]
[359082466,1745699270728,-400.0,0.00019861,2]
[359082467,1745699270754,-2040.23,0.00019861,2]
[359082468,1745699270779,-222.299157,0.00019861,2]
[359082469,1745699270804,-400.0,0.00019861,2]
[359082470,1745699270829,-610.74,0.00019861,2]
[359082471,1745699270853,-400.0,0.00019861,2]
[359082472,1745699270876,-400.0,0.00019861,2]
[359082473,1745699270900,-400.0,0.00019861,2]
[359082474,1745699270924,-400.0,0.00019861,2]
[359082475,1745699270948,-585.09,0.00019861,2]
[359082476,1745699270971,-400.0,0.00019861,2]
[359082477,1745699270995,-410.76,0.00019861,2]
[359082478,1745699271019,-500.0,0.00019861,2]
[359082479,1745699271043,-400.0,0.00019861,2]
[359082480,1745699271068,-400.0,0.00019861,2]
[359082481,1745699271091,-400.0,0.00019861,2]
[359082482,1745699271117,-400.0,0.00019861,2]
[359082483,1745699271142,-886.34,0.00019861,2]
[359082484,1745699271166,-400.0,0.00019861,2]
[359082485,1745699271190,-527.58,0.00019862,2]
[359082486,1745699271215,-400.0,0.00019862,2]
[359082487,1745699271237,-400.0,0.00019862,2]
[359082488,1745699271260,-400.0,0.00019862,2]
[359082489,1745699271284,-400.0,0.00019862,2]
[359082490,1745699271308,-400.0,0.00019862,2]
[359082491,1745699271333,-400.0,0.00019862,2]
[359082492,1745699271357,-422.73,0.00019862,2]
[359082493,1745699271381,-400.0,0.00019862,2]
[359082494,1745699271405,-400.0,0.00019862,2]
[359082495,1745699271430,-400.0,0.00019862,2]
[359082496,1745699271455,-470.98,0.00019862,2]
[359082497,1745699271477,-400.0,0.00019862,2]
[359082498,1745699271500,-302.96644181,0.00019862,2]
[359082499,1745699271525,-400.0,0.00019862,2]
[359082500,1745699271550,-400.0,0.00019862,2]
[359082501,1745699271573,-500.0,0.00019862,2]
[359082502,1745699271597,-500.0,0.00019862,2]
[359082503,1745699271620,-400.0,0.00019862,2]
[359082504,1745699271643,-400.0,0.00019862,2]
[359082505,1745699271667,-300.0,0.00019862,2]
[359082506,1745699271691,-483.74,0.00019862,2]
[359082507,1745699271715,-400.0,0.00019862,2]
[359082508,1745699271738,-400.0,0.00019862,2]
[359082509,1745699271761,-400.0,0.00019862,2]
[359082510,1745699272138,-500.0,0.00019862,2]
[359082511,1745699272161,-400.0,0.00019862,2]
[359082512,1745699272186,-525.73,0.00019862,2]
[359082513,1745699272214,-857.69,0.00019862,2]
[359082514,1745699272238,-400.0,0.00019862,2]
[359082515,1745699272262,-400.0,0.00019862,2]
[359082516,1745699272288,-400.0,0.00019862,2]
[359082517,1745699272312,-541.08,0.00019862,2]
[359082518,1745699272335,-400.0,0.00019862,2]
[359082519,1745699272359,-193.03,0.00019862,2]
[359082520,1745699272383,-400.0,0.00019862,2]
[359082521,1745699272407,-400.0,0.00019862,2]
[359082522,1745699272430,-414.24,0.00019862,2]
[359082523,1745699272453,-3580.93,0.00019862,2]
[359082524,1745699272476,-400.0,0.00019862,2]
[359082525,1745699272500,-412.62,0.00019862,2]
[359082526,1745699272524,-400.0,0.00019862,2]
[359082527,1745699272549,-400.0,0.00019862,2]
[359082528,1745699272573,-410.09,0.00019862,2]
[359082529,1745699272596,-437.48,0.00019862,2]
[359082530,1745699272620,-400.0,0.00019862,2]
[359082531,1745699272644,-400.0,0.00019862,2]
[359082532,1745699272667,-1537.82,0.00019862,2]
[359082533,1745699272690,-400.0,0.00019862,2]
[359082534,1745699272713,-400.0,0.00019862,2]
[359082535,1745699272736,-400.0,0.00019862,2]
[359082536,1745699272759,-400.0,0.00019862,2]
[359082537,1745699272781,-668.8,0.00019862,2]
[359082538,1745699272805,-400.0,0.00019862,2]
[359082539,1745699272830,-583.66,0.00019862,2]
[359082540,1745699272854,-794.33,0.00019862,2]
[359082541,1745699272877,-400.0,0.00019862,2]
[359082542,1745699272902,-237.23,0.00019862,2]
[359082543,1745699272927,-603.6,0.00019862,2]
[359082544,1745699272951,-607.61,0.00019862,2]
[359082545,1745699272976,-593.33,0.00019862,2]
[359082546,1745699273000,-400.0,0.00019862,2]
[359082547,1745699273023,-400.0,0.00019862,2]
[359082548,1745699273049,-400.0,0.00019862,2]
[359082549,1745699273073,-492.22,0.00019862,2]
[359082550,1745699273098,-555.87,0.00019862,2]
[359082551,1745699273122,-169.54,0.00019862,2]
[359082552,1745699273145,-400.0,0.00019862,2]
[359082553,1745699273169,-425.95,0.00019862,2]
[359082554,1745699273196,-400.0,0.00019862,2]
[359082555,1745699273219,-400.0,0.00019862,2]
[359082556,1745699273241,-400.0,0.00019862,2]
[359082557,1745699273264,-708.18,0.00019862,2]
[359082558,1745699273288,-400.0,0.00019862,2]
[359082559,1745699273314,-499.42,0.00019862,2]
[359082560,1745699273338,-666.58,0.00019862,2]
[359082561,1745699273362,-400.0,0.00019862,2]
[359082562,1745699273386,-463.25,0.00019862,2]
[359082563,1745699273411,-400.0,0.00019862,2]
[359082564,1745699273435,-555.3,0.00019862,2]
[359082565,1745699273460,-400.0,0.00019862,2]
[359082566,1745699273484,-776.27,0.00019862,2]
[359082567,1745699273507,-400.0,0.00019862,2]
[359082568,1745699273530,-400.0,0.00019862,2]
[359082569,1745699273554,-461.82,0.00019862,2]
[359082570,1745699273580,-400.0,0.00019862,2]
[359082571,1745699273605,-400.0,0.00019862,2]
[359082572,1745699273627,-400.0,0.00019862,2]
[359082573,1745699273650,-400.0,0.00019862,2]
[359082574,1745699273674,-546.35,0.00019862,2]
[359082575,1745699273698,-400.0,0.00019862,2]
[359082576,1745699273724,-400.0,0.00019862,2]
[359082577,1745699273749,-412.05,0.00019862,2]
[359082578,1745699273773,-579.14,0.00019862,2]
[359082579,1745699273796,-400.0,0.00019862,2]
[359082580,1745699273821,-1413.24,0.00019862,2]
[359082581,1745699273844,-400.0,0.00019862,2]
[359082582,1745699273868,-400.0,0.00019862,2]
[359082583,1745699273893,-400.0,0.00019862,2]
[359082584,1745699273916,-400.0,0.00019862,2]
[359082585,1745699273940,-400.0,0.00019862,2]
[359082586,1745699273964,-400.0,0.00019862,2]
[359082587,1745699273988,-400.0,0.00019862,2]
[359082588,1745699274013,-1438.27,0.00019862,2]
[359082589,1745699274038,-400.0,0.00019862,2]
[359082590,1745699274062,-400.0,0.00019862,2]
[359082591,1745699274087,-458.01277695,0.00019862,2]
[359082592,1745699274112,-400.0,0.00019862,2]
[359082593,1745699274136,-400.0,0.00019862,2]
[359082594,1745699274160,-400.0,0.00019862,2]
[359082595,1745699274184,-400.0,0.00019862,2]
[359082596,1745699274211,-678.5,0.00019862,2]
[359082597,1745699274235,-665.83,0.00019862,2]
[359082598,1745699274258,-748.45,0.00019862,2]
[359082599,1745699274283,-793.38,0.00019862,2]
[359082600,1745699274307,-431.87,0.00019862,2]
[359082601,1745699274331,-469.32,0.00019862,2]
[359082602,1745699274356,-1504.71,0.00019862,2]
[359082603,1745699274381,-663.41,0.00019862,2]
[359082604,1745699274407,-485.89,0.00019862,2]
[359082605,1745699274490,-400.0,0.00019862,2]
[359082606,1745699274514,-400.0,0.00019862,2]
[359082607,1745699274539,-542.25,0.00019862,2]
[359082608,1745699274564,-400.0,0.00019862,2]
[359082609,1745699274589,-487.93,0.00019862,2]
[359082610,1745699274614,-532.92,0.00019862,2]
[359082611,1745699274640,-636.85,0.00019862,2]
[359082612,1745699274667,-695.43,0.00019862,2]
[359082613,1745699274693,-433.9,0.00019862,2]
[359082614,1745699274718,-83909.98,0.00019862,2]
[359082615,1745699274744,-539.22,0.00019862,2]
[359082616,1745699274768,-400.0,0.00019862,2]
[359082617,1745699274793,-400.0,0.00019862,2]
[359082618,1745699274819,-573.18,0.00019862,2]
[359082619,1745699274843,-400.0,0.00019862,2]
[359082620,1745699274868,-400.0,0.00019862,2]
[359082621,1745699274892,-482.03,0.00019862,2]
[359082622,1745699274916,-584.24,0.00019862,2]
[359082623,1745699274942,-473.69,0.00019862,2]
[359082624,1745699274967,-685.07,0.00019862,2]
[359082625,1745699274993,-400.0,0.00019862,2]
[359082626,1745699275019,-594.31,0.00019862,2]
[359082627,1745699275044,-9343.09,0.00019862,2]
[359082628,1745699275069,-508.21,0.00019862,2]
[359082629,1745699275095,-400.0,0.00019862,2]
[359082630,1745699275121,-927.5,0.00019862,2]
[359082631,1745699275147,-554.18,0.00019862,2]
[359082632,1745699275171,-4952.2,0.00019862,2]
[359082633,1745699275198,-473.9,0.00019862,2]
[359082634,1745699275222,-523.34,0.00019862,2]
[359082635,1745699275246,-400.0,0.00019862,2]
[359082636,1745699275269,-1930.88,0.00019862,2]
[359082637,1745699275293,-814.72,0.00019862,2]
[359082638,1745699275315,-566.92,0.00019862,2]
[359082639,1745699275338,-798.1,0.00019862,2]
[359082640,1745699275361,-400.0,0.00019862,2]
[359082641,1745699275383,-490.82825259,0.00019862,2]
[359082642,1745699275408,-400.0,0.00019862,2]
[359082643,1745699275431,-21722.85408919,0.00019862,2]
[359082644,1745699275997,-151.0,0.0001974,2]
[359082645,1745699276021,-73215.50591081,0.00019862,2]
[359082646,1745699276045,-425.96,0.00019862,2]
[359082647,1745699276070,-630.83,0.00019862,2]
[359082648,1745699276095,-400.0,0.00019862,2]
[359082649,1745699276120,-611.32,0.00019862,2]
[359082650,1745699276147,-412.49,0.00019862,2]
[359082651,1745699276170,-555.25,0.00019862,2]
[359082652,1745699276198,-510.34,0.00019862,2]
[359082653,1745699276222,-400.0,0.00019862,2]
[359082654,1745699276247,-400.0,0.00019862,2]
[359082655,1745699276273,-441.74,0.00019862,2]
[359082656,1745699276297,-400.0,0.00019862,2]
[359082657,1745699276320,-2962.47,0.00019862,2]
[359082658,1745699276344,-400.0,0.00019862,2]
[359082659,1745699276370,-954.01,0.00019862,2]
[359082660,1745699276393,-400.0,0.00019862,2]
[359082661,1745699276418,-556.71,0.00019862,2]
[359082662,1745699276442,-400.0,0.00019862,2]
[359082663,1745699276467,-400.0,0.00019862,2]
[359082664,1745699276492,-400.0,0.00019862,2]
[359082665,1745699276517,-400.0,0.00019862,2]
[359082666,1745699276542,-400.0,0.00019862,2]
[359082667,1745699276565,-411.88,0.00019862,2]
[359082668,1745699276589,-400.0,0.00019862,2]
[359082669,1745699276615,-400.0,0.00019862,2]
[359082670,1745699276638,-400.0,0.00019862,2]
[359082671,1745699276662,-629.32,0.00019862,2]
[359082672,1745699276685,-914.5,0.00019862,2]
[359082673,1745699276709,-418.05,0.00019862,2]
[359082674,1745699276735,-588.71,0.00019862,2]
[359082675,1745699276759,-539.45,0.00019862,2]
[359082676,1745699276783,-717.77,0.00019862,2]
[359082677,1745699276808,-400.0,0.00019862,2]
[359082678,1745699276831,-868.45,0.00019862,2]
[359082679,1745699276855,-400.0,0.00019862,2]
[359082680,1745699276879,-400.0,0.00019862,2]
[359082681,1745699276904,-400.0,0.00019862,2]
[359082682,1745699276929,-400.0,0.00019862,2]
[359082683,1745699276952,-400.0,0.00019862,2]
[359082684,1745699276976,-400.0,0.00019862,2]
[359082685,1745699277000,-465.74,0.00019862,2]
[359082686,1745699277024,-400.0,0.00019862,2]
[359082687,1745699277049,-488.14,0.00019862,2]
[359082688,1745699277071,-400.0,0.00019862,2]
[359082689,1745699277094,-400.0,0.00019862,2]
[359082690,1745699277118,-1226.46,0.00019862,2]
[359082691,1745699277142,-430.15,0.00019862,2]
[359082692,1745699277166,-790.34,0.00019862,2]
[359082693,1745699277194,-400.0,0.00019862,2]
[359082694,1745699277217,-628.53,0.00019862,2]
[359082695,1745699277241,-2920.25,0.00019862,2]
[359082696,1745699277264,-400.0,0.00019862,2]
[359082697,1745699277289,-930.74,0.00019862,2]
[359082698,1745699277314,-400.0,0.00019862,2]
[359082699,1745699277338,-548.39,0.00019862,2]
[359082700,1745699277362,-902.23,0.00019862,2]
[359082701,1745699277387,-400.0,0.00019862,2]
[359082702,1745699277414,-400.0,0.00019862,2]
[359082703,1745699277439,-400.0,0.00019862,2]
[359082704,1745699277465,-400.0,0.00019862,2]
[359082705,1745699277488,-2514.17,0.00019862,2]
[359082706,1745699277510,-400.0,0.00019862,2]
[359082707,1745699277534,-400.0,0.00019862,2]
[359082708,1745699277558,-486.65,0.00019862,2]
[359082709,1745699277582,-400.0,0.00019862,2]
[359082710,1745699277606,-400.0,0.00019862,2]
[359082711,1745699277630,-433.03,0.00019862,2]
[359082712,1745699277654,-702.43,0.00019862,2]
[359082713,1745699277677,-671.91,0.00019862,2]
[359082714,1745699277702,-3885.93,0.00019862,2]
[359082715,1745699277725,-400.0,0.00019862,2]
[359082716,1745699277849,-400.0,0.00019862,2]
[359082717,1745699277929,-400.0,0.00019863,2]
[359082718,1745699277952,-728.02,0.00019863,2]
[359082719,1745699277976,-400.0,0.00019863,2]
[359082720,1745699278000,-400.0,0.00019863,2]
[359082721,1745699278023,-400.0,0.00019863,2]
[359082722,1745699278046,-400.0,0.00019863,2]
[359082723,1745699278070,-540.83,0.00019863,2]
[359082724,1745699278093,-400.0,0.00019863,2]
[359082725,1745699278117,-564.95,0.00019863,2]
[359082726,1745699278141,-400.0,0.00019863,2]
[359082727,1745699278165,-434.36,0.00019863,2]
[359082728,1745699278189,-400.0,0.00019863,2]
[359082729,1745699278215,-400.0,0.00019863,2]
[359082730,1745699278239,-400.0,0.00019863,2]
[359082731,1745699278262,-400.0,0.00019863,2]
[359082732,1745699278286,-1660.71,0.00019863,2]
[359082733,1745699278310,-534.12,0.00019863,2]
[359082734,1745699278334,-438.58,0.00019863,2]
[359082735,1745699278357,-400.0,0.00019863,2]
[359082736,1745699278382,-400.0,0.00019863,2]
[359082737,1745699278406,-413.37,0.00019863,2]
[359082738,1745699278429,-400.0,0.00019863,2]
[359082739,1745699278452,-400.0,0.00019863,2]
[359082740,1745699278476,-582.25,0.00019863,2]
[359082741,1745699278500,-400.0,0.00019863,2]
[359082742,1745699278524,-400.0,0.00019863,2]
[359082743,1745699278547,-400.0,0.00019863,2]
[359082744,1745699278570,-400.0,0.00019863,2]
[359082745,1745699278594,-400.0,0.00019863,2]
[359082746,1745699278617,-400.0,0.00019863,2]
[359082747,1745699278641,-400.0,0.00019863,2]
[359082748,1745699278664,-504.19,0.00019863,2]
[359082749,1745699278687,-400.0,0.00019863,2]
[359082750,1745699278710,-400.0,0.00019863,2]
[359082751,1745699278734,-400.0,0.00019863,2]
[359082752,1745699278758,-194.46086724,0.00019863,2]
[359082753,1745699278781,-737.91,0.00019863,2]
[359082754,1745699278805,-400.0,0.00019863,2]
[359082755,1745699278828,-651.63,0.00019863,2]
[359082756,1745699278853,-830.99,0.00019863,2]
[359082757,1745699278876,-694.19,0.00019863,2]
[359082758,1745699278900,-400.0,0.00019863,2]
[359082759,1745699278924,-400.0,0.00019863,2]
[359082760,1745699278949,-500.0,0.00019863,2]
[359082761,1745699278973,-624.91,0.00019863,2]
[359082762,1745699278996,-400.0,0.00019863,2]
[359082763,1745699279019,-400.0,0.00019863,2]
[359082764,1745699279043,-400.0,0.00019863,2]
[359082765,1745699279067,-400.0,0.00019863,2]
[359082766,1745699279090,-400.0,0.00019863,2]
[359082767,1745699279113,-400.0,0.00019863,2]
[359082768,1745699279136,-400.0,0.00019863,2]
[359082769,1745699279160,-400.0,0.00019863,2]
[359082770,1745699279183,-211.29,0.00019863,2]